[Event "67th Mexican-ch Open 2022"]
[Site "Chihuahua"]
[Date "2022.04.17"]
[Round "8.16"]
[White "Montes Orozco, Miguel Angel"]
[Black "Lopez Raygoza, Luis Alberto"]
[Result "1/2-1/2"]
[ECO "D20"]
[WhiteElo "1914"]
[BlackElo "2207"]
[Annotator "TA"]
[PlyCount "54"]
[EventDate "2022.04.12"]
[EventType "swiss"]
[EventCountry "MEX"]
[SourceTitle "playchess.com"]
[Source "ChessBase"]
[SourceQuality "1"]
[TimeControl "5400+30"]

{[%evp 17,54,60,67,66,79,14,4,0,76,73,59,24,56,14,87,69,73,61,67,81,101,102,88,0,0,0,0,0,0,0,0,-46,-46,-81,-32,-36,-22,-51,0]} 1. d4 {[%emt 0:01:21]} d5 {[%emt 0:14:39]} 2. c4 {[%emt 0:00:07]} dxc4 {[%emt 0:00:18]} 3. e3 {[%emt 0:04:58]} e5 {[%emt 0:00:28]} 4. Bxc4 {[%emt 0:02:19]} exd4 {[%emt 0:02:20]} 5. exd4 {[%emt 0:00:06]} Nf6 {[%emt 0:00:06]} 6. Nf3 {[%emt 0:00:44]} Bd6 {[%emt 0:00:09]} 7. O-O {[%emt 0:00:29]} O-O {[%emt 0:00:17]} 8. Nc3 {[%emt 0:05:37]} Bg4 {[%emt 0:05:13]} 9. h3 {[%emt 0:00:16]} Bh5 {[%emt 0:00:19]} 10. g4 {[%emt 0:01:55] D20: Queen's Gambit Accepted: 3 e3 and 3 e4.} Bg6 {[%emt 0:05:22]} 11. Bg5 {[%emt 0:00:21]} ({White should try} 11. Ne5 $16) 11... Nbd7 $11 {[%emt 0:04:23]} 12. Re1 {[%emt 0:07:04] The position is equal.} Re8 {[%emt 0:09:35] [#] Against Ne5} (12... c6 $11 {keeps the balance.}) 13. Qb3 $146 {[%emt 0:15:21]} ({Predecessor:} 13. Qd2 c6 14. Rxe8+ Qxe8 15. Re1 Qf8 16. Ne5 Nb6 17. Bb3 Nfd5 18. f4 f6 19. f5 {0-1 (44) Williams,S (2411)-Brynell,S (2458) Oslo 2004}) 13... Nb6 {[%emt 0:07:08]} 14. Bf1 {[%emt 0:02:27]} (14. Ne5 $5 {[%cal Rc4f7]} Nxc4 15. Nxc4 $14) 14... Be7 {[%emt 0:02:47]} 15. Bg2 {[%emt 0:08:22]} (15. Ne5 $5 {[%cal Rh3h4]}) 15... Rb8 {[%emt 0:11:21]} (15... c6 $11) 16. Ne5 {[%emt 0:04:26]} Qxd4 {[%emt 0:04:46] [#] White must now prevent ...Bc5.} 17. Nb5 {[%emt 0:02:15][%csl LRa7,LRc7,LRd4]} Qb4 {[%emt 0:02:35]} 18. Nxc7 {[%emt 0:00:50]} Rec8 {[%emt 0:02:10]} 19. Nxg6 {[%emt 0:05:28] 0x0.00299f40aea5dp-1022s more active pieces.} hxg6 {[%emt 0:00:27]} 20. Bf4 {[%emt 0:01:29]} Qxf4 $11 {[%emt 0:03:26]} 21. Rxe7 {[%emt 0:00:17]} Nxg4 {[%emt 0:00:09]} 22. hxg4 {[%emt 0:02:56] [#] Threatens to win with Nd5.} Rxc7 {[%emt 0:00:17]} 23. Rae1 {[%emt 0:00:04]} Rf8 {[%emt 0:12:54]} 24. Bxb7 {[%emt 0:00:41]} (24. Rxc7 $11 {feels stronger.} Qxc7 25. Bf3) 24... Qxg4+ $15 {[%emt 0:00:53]} 25. Qg3 {[%emt 0:00:05]} Qxg3+ {[%emt 0:00:45]} (25... Rxe7 $17 26. Rxe7 Qb4) 26. fxg3 {[%emt 0:00:02]} Rc2 {[%emt 0:00:28]} 27. R7e2 {[%emt 0:00:14]} Rc7 {[%emt 0:02:38] Weighted Error Value: White=0.24 (precise) /Black=0.21 (precise)} (27... Rc5 $15) 1/2-1/2

[Event "67th Mexican-ch Open 2022"]
[Site "Chihuahua"]
[Date "2022.04.17"]
[Round "8.17"]
[White "Quiroga Jaquez, Angel Ivan"]
[Black "Rascon Vega, Alfonso"]
[Result "0-1"]
[ECO "A49"]
[WhiteElo "2185"]
[BlackElo "2107"]
[Annotator "TA"]
[PlyCount "64"]
[EventDate "2022.04.12"]
[EventType "swiss"]
[EventCountry "MEX"]
[SourceTitle "playchess.com"]
[Source "ChessBase"]
[SourceQuality "1"]
[TimeControl "5400+30"]

{[%evp 14,64,45,29,28,27,19,17,38,30,58,53,45,37,27,4,17,-22,-18,-20,-10,-16,-10,-17,-3,-49,-63,-116,-119,-106,-104,-106,-33,-150,-149,-153,-158,-164,-162,-203,-134,-194,-188,-197,-196,-422,-414,-420,-414,-826,-843,-803,-800]} 1. Nf3 {[%emt 0:01:45]} g6 {[%emt 0:00:30]} 2. d4 {[%emt 0:00:46]} Bg7 {[%emt 0:00:23]} 3. g3 {[%emt 0:01:12]} Nf6 {[%emt 0:01:49]} 4. Bg2 {[%emt 0:00:11]} O-O {[%emt 0:00:07]} 5. O-O {[%emt 0:00:27]} d6 {[%emt 0:00:06]} 6. b3 {[%emt 0:00:23]} c6 {[%emt 0:01:03]} 7. Bb2 {[%emt 0:00:30]} Qa5 {[%emt 0:00:27] Recently 7...Bf5 got a lot of attention.} 8. h3 {[%emt 0:07:03]} Qh5 {[%emt 0:02:12] A49: 1 d4 Nf6 2 Nf3 g6 3 g3: Anti-King's Indian systems.} 9. g4 {[%emt 0:00:14]} Qa5 {[%emt 0:00:05] has lost popularity (9...Bxg4).} 10. Nbd2 {[%emt 0:03:15]} Nbd7 {[%emt 0:09:32] The position is equal.} 11. e4 {[%emt 0:00:36]} h5 {[%emt 0:00:59] [#]} 12. e5 $146 {[%emt 0:10:16] Strongly threatening Nc4.} ({Predecessor:} 12. g5 Nh7 13. Nc4 Qc7 14. a4 a5 15. Qd2 Rd8 16. Nh4 d5 17. exd5 cxd5 18. Bxd5 {1-0 (29) Shengelia,D (2572)-Boraso,A (2232) Vienna 2015}) 12... dxe5 {[%emt 0:00:28]} 13. dxe5 {[%emt 0:00:14] Hoping for Nc4.} Nd5 {[%emt 0:00:40]} 14. Nc4 {[%emt 0:00:39]} (14. gxh5 {is more complex.} Nf4 15. Nc4 Qc7 16. e6) 14... Qc7 {[%emt 0:01:13]} 15. Qd4 {[%emt 0:09:26] And now gxh5 would win.} (15. gxh5 {is interesting.} Nf4 16. Qd2 Bh6 17. Kh1) 15... hxg4 {[%emt 0:02:12]} 16. hxg4 {[%emt 0:00:25]} Rd8 {[%emt 0:04:21]} 17. Ne3 {[%emt 0:14:15]} Nf8 {[%emt 0:02:39]} 18. Nxd5 {[%emt 0:02:18]} cxd5 {[%emt 0:00:28]} 19. Ne1 {[%emt 0:16:56]} (19. Rfe1 $11 {deserves consideration.}) 19... Ne6 $15 {[%emt 0:00:24]} 20. Qd2 {[%emt 0:04:04]} (20. Qc3 $15) 20... Bxe5 $17 {[%emt 0:00:39]} 21. Bxe5 {[%emt 0:00:07]} Qxe5 {[%emt 0:00:07]} 22. Nd3 {[%emt 0:00:09]} Qg5 {[%emt 0:04:37]} (22... Qd4 $17 23. Rae1 Qxg4) 23. Qd1 {[%emt 0:01:56]} ({Better is} 23. Qxg5 $15 Nxg5 24. Rfe1) 23... Nf4 {[%emt 0:03:07] &Nero is more active.} 24. Nxf4 {[%emt 0:00:46]} Qxf4 {[%emt 0:00:06]} 25. f3 {[%emt 0:00:32]} e5 {[%emt 0:00:53]} 26. Qe2 {[%emt 0:00:16]} Qd4+ {[%emt 0:01:07]} 27. Kh2 {[%emt 0:00:07]} (27. Qf2 $17) 27... Kg7 $36 {[%emt 0:00:20][%mdl 2048] ...Rh8+ is the strong threat. Black has strong initiative.} 28. Rae1 {[%emt 0:01:12]} Rh8+ {[%emt 0:02:05]} 29. Bh3 $2 {[%emt 0:00:16]} (29. Kg3 {was the only defense.}) 29... Qf4+ $19 {[%emt 0:02:09]} 30. Kg2 {[%emt 0:00:09]} Rxh3 {[%emt 0:00:16]} 31. Kxh3 {[%emt 0:00:15] [#]} (31. Qxe5+ $142 Qxe5 32. Rxe5) 31... Bxg4+ $1 {[%emt 0:00:08][%mdl 512]} 32. Kg2 {[%emt 0:00:19] [#]} Bh3+ $1 {[%emt 1:01:18][%mdl 512] Weighted Error Value: White=0.53/Black=0.11 (very precise)} 0-1

[Event "67th Mexican-ch Open 2022"]
[Site "Chihuahua"]
[Date "2022.04.17"]
[Round "8.18"]
[White "Guerrero Cataldo, Juan Andres"]
[Black "Luna Javier, Edgar Froylan"]
[Result "1/2-1/2"]
[ECO "B22"]
[WhiteElo "1976"]
[BlackElo "2148"]
[Annotator "TA"]
[PlyCount "104"]
[EventDate "2022.04.12"]
[EventType "swiss"]
[EventCountry "MEX"]
[SourceTitle "playchess.com"]
[Source "ChessBase"]
[SourceQuality "1"]
[TimeControl "5400+30"]

{[%evp 9,104,15,36,0,3,0,0,11,43,24,216,13,5,-37,-33,-47,61,66,86,77,234,115,104,88,89,58,90,92,83,87,91,89,90,0,75,78,72,43,52,44,75,62,94,25,34,0,0,0,41,0,176,93,110,47,468,478,469,429,468,475,463,206,417,404,437,274,268,202,204,211,207,201,192,181,187,180,193,171,166,157,152,156,176,0,0,0,0,0,0,0,0,0,0,0,0,0,0]} 1. e4 {[%emt 1:31:00]} c5 {[%emt 0:05:50]} 2. c3 {[%emt 0:00:00]} d5 {[%emt 0:04:29]} 3. exd5 {[%emt 0:00:00]} Qxd5 {[%emt 0:00:19]} 4. d4 {[%emt 0:00:00]} Nc6 {[%emt 0:01:36]} 5. Nf3 {[%emt 0:00:00]} Bf5 {[%emt 0:04:25]} 6. Be2 {[%emt 0:00:00] B22: Sicilian: 2 c3.} cxd4 {[%emt 0:04:03]} 7. cxd4 {[%emt 0:00:00]} Bxb1 {[%emt 0:02:02]} 8. Rxb1 {[%emt 0:00:00] Threatening b4.} Qxa2 {[%emt 0:02:26]} 9. Be3 {[%emt 0:00:00]} Nf6 $2 {[%emt 0:00:31]} (9... e6 $1 $11) 10. O-O $2 {[%emt 0:00:00]} (10. Ne5 $1 $18 Qa5+ 11. b4) 10... e6 $11 {[%emt 0:04:36]} 11. Bb5 {[%emt 0:00:00] [#]} Bd6 $146 {[%emt 0:06:40]} ({Predecessor:} 11... Qd5 12. Qa4 a6 13. Bc4 Qd7 14. Qa2 Bd6 15. Rfd1 Nb4 16. Qb3 b5 17. Be2 Nbd5 {0-1 (30) Sanchez Alarcon,J (2181)-Aliakbarov,A (2263) Chess.com INT 2019}) 12. Ne5 {[%emt 0:00:00] Threatens to win with Nc4.} Bxe5 {[%emt 0:14:55]} (12... Qd5 $15 13. Qa4 a6 14. Bxc6+ bxc6) 13. dxe5 $14 {[%emt 0:00:00]} Nd5 {[%emt 0:00:13]} 14. Bc5 {[%emt 0:00:00]} a6 $2 {[%emt 0:00:11]} (14... Qa5 $16 15. Qb3 Qc7) 15. Bxc6+ {[%emt 0:00:00]} (15. Ba4 $1 $18) 15... bxc6 $16 {[%emt 0:01:33]} 16. Qd4 {[%emt 0:00:00]} Qb3 {[%emt 0:03:13]} 17. Ba3 {[%emt 0:00:00][%mdl 1024] White has strong compensation.} Qb6 {[%emt 0:00:24]} 18. Qg4 {[%emt 0:00:00]} g6 {[%emt 0:06:22]} 19. Rbc1 {[%emt 0:00:00] Prevents c5.} Rc8 {[%emt 0:02:46]} 20. Rfd1 {[%emt 0:00:00][%cal Od1d5] Black must now prevent Rxd5!} h5 {[%emt 0:03:37]} 21. Qh3 {[%emt 0:00:00]} (21. Qa4 $16) 21... Rc7 {[%emt 0:04:19]} (21... Nb4 $11) 22. Bd6 {[%emt 0:00:00]} Rd7 {[%emt 0:00:25]} 23. Qd3 {[%emt 0:00:00]} Ne7 {[%emt 0:03:46]} 24. Qa3 $1 {[%emt 0:00:00]} Qb7 {[%emt 0:03:45]} 25. Bc5 $1 {[%emt 0:00:00] &Bianco is much more active.} Rd5 {[%emt 0:05:27]} 26. Rxd5 {[%emt 0:00:00]} ({Reject} 26. Bxe7 Rxd1+ 27. Rxd1 Qxe7 $11) (26. h3 $1 $16) 26... Nxd5 $11 {[%emt 0:00:57]} 27. Bd6 {[%emt 0:00:00]} Kd7 {[%emt 0:01:47]} 28. Qf3 {[%emt 0:00:00]} f6 {[%emt 0:01:15]} 29. b4 {[%emt 0:00:00]} Qb5 $2 {[%emt 0:03:04]} (29... f5 $11) 30. Qg3 $1 $18 {[%emt 0:00:00] Strongly threatening exf6.} g5 {[%emt 0:04:31]} 31. exf6 {[%emt 0:00:00]} (31. h4 $16 Nf4 32. Qe3) 31... Nxf6 $2 {[%emt 0:00:02][%mdl 8192] [#]} ({Black should try} 31... h4 $1 $14 32. Qe5 Nf4) 32. Bc5 $1 {[%emt 0:00:00]} Nd5 {[%emt 0:04:02]} 33. Qd6+ {[%emt 0:00:00]} Kc8 {[%emt 0:00:01]} 34. Qxe6+ {[%emt 0:00:00]} Kb7 {[%emt 0:00:01]} 35. Bd6 {[%emt 0:00:00]} (35. Qd7+ $142 Nc7 36. Bd6) 35... Qb6 $2 {[%emt 0:00:00]} (35... Rd8 {might work better.} 36. Qf7+ Ka8) 36. Qd7+ {[%emt 0:00:00]} Nc7 {[%emt 0:00:00]} 37. Qg7 {[%emt 0:00:00]} Rd8 {[%emt 0:00:00]} 38. Bc5 {[%emt 0:00:00]} Qb5 {[%emt 0:00:00]} 39. Qxg5 {[%emt 0:00:00]} Rd5 {[%emt 0:00:00]} 40. Qe7 {[%emt 0:00:00] Hoping for Bd6.} Qd3 {[%emt 0:00:00][%cal Od3d1]} 41. Rf1 {[%emt 0:00:00] Prevents Qd1.} Qg6 {[%emt 0:00:12]} 42. Be3 {[%emt 0:00:22] And now Bf4 would win.} Qf5 {[%emt 0:00:57] Against Bf4} 43. g3 {[%emt 0:01:07]} Rd7 {[%emt 0:01:03]} 44. Qh4 {[%emt 0:00:20]} Nd5 {[%emt 0:00:46] [#]} 45. Bc5 $1 {[%emt 0:02:53]} Qf3 {[%emt 0:02:10]} 46. Bd4 $2 {[%emt 0:01:53]} ({Better is} 46. h3 $18) 46... Nf4 $1 $11 {[%emt 0:04:49] The position is equal.} 47. gxf4 {[%emt 0:01:34]} Rxd4 {[%emt 0:00:00] KQR-KQR} 48. Qe7+ {[%emt 0:00:01]} Kc8 {[%emt 0:00:00]} 49. Qf8+ {[%emt 0:02:48]} Rd8 {[%emt 0:00:00]} 50. Qf5+ {[%emt 0:00:11]} Kc7 {[%emt 0:00:00] ...Rg8+ is the strong threat.} 51. Qa5+ {[%emt 0:03:18]} Kb7 {[%emt 0:00:00]} 52. Qxd8 {[%emt 0:01:15] Intending Qd7+ and mate.} Qg4+ {[%emt 0:00:28] White really could win this.  Weighted Error Value: White=0.36/Black=0.46} 1/2-1/2

[Event "67th Mexican-ch Open 2022"]
[Site "Chihuahua"]
[Date "2022.04.17"]
[Round "8.19"]
[White "Palma Villanueva, Miguel Ta"]
[Black "Davalos Prieto, Abel Justo"]
[Result "1/2-1/2"]
[ECO "B31"]
[WhiteElo "2210"]
[BlackElo "2103"]
[Annotator "TA"]
[PlyCount "141"]
[EventDate "2022.04.12"]
[EventType "swiss"]
[EventCountry "MEX"]
[SourceTitle "playchess.com"]
[Source "ChessBase"]
[SourceQuality "1"]
[TimeControl "5400+30"]

{[%evp 20,141,31,24,30,58,50,22,77,24,66,72,43,43,58,41,75,72,65,57,68,62,33,41,79,86,84,64,61,44,95,91,114,113,113,56,46,10,10,10,12,5,12,5,46,39,39,39,39,39,43,41,55,39,56,44,44,2,8,9,51,17,51,52,44,35,35,35,39,47,69,55,78,74,75,68,99,101,82,50,226,226,227,228,211,210,229,219,377,379,372,369,339,132,153,0,0,0,0,0,0,0,0,0,0,-2904,-2282,-3293,-2842,-29952,-29951,-3017,-2507,-29950,-29953,-11707,-137,-137,-137,-137,-137,-137,-137,-144]} 1. e4 {[%emt 0:00:03]} c5 {[%emt 0:00:07]} 2. Nf3 {[%emt 0:00:05]} Nc6 {[%emt 0:00:15]} 3. Bb5 {[%emt 0:00:03]} g6 {[%emt 0:00:13]} 4. O-O {[%emt 0:00:05]} Bg7 {[%emt 0:00:18]} 5. c3 {[%emt 0:00:03]} Nf6 {[%emt 0:00:56]} 6. Re1 {[%emt 0:01:16]} O-O {[%emt 0:03:56]} 7. d4 {[%emt 0:04:51]} cxd4 {[%emt 0:09:20]} 8. cxd4 {[%emt 0:00:18]} a6 {[%emt 0:03:17]} 9. Bf1 {[%emt 0:08:27]} d6 {[%emt 0:05:00]} 10. h3 {[%emt 0:02:48]} Bd7 {[%emt 0:11:01]} 11. Nc3 {[%emt 0:03:30]} b5 {[%emt 0:07:14][%cal Bb7b5,Bb5b4][%mdl 32] B31: Sicilian: 2...Nc6 3 Bb5 g6.} 12. Bg5 {[%emt 0:18:15]} h6 {[%emt 0:01:14] [#]} 13. Bd2 $146 {[%emt 0:00:54]} ({Predecessor:} 13. Bh4 b4 14. Nd5 g5 15. Nxf6+ Bxf6 16. Bg3 Bg7 17. e5 dxe5 18. d5 Nd4 19. Bxe5 Nxf3+ 20. Qxf3 {1-0 (34) Polacik,I (2199)-Veselsky,J (2118) Slovakia 2011}) 13... Kh7 {[%emt 0:02:32]} (13... e5 $11) 14. Bd3 {[%emt 0:03:58]} (14. e5 $16 Ne8 15. a4) 14... Ne8 {[%emt 0:13:30]} 15. Be3 {[%emt 0:09:01]} e6 {[%emt 0:10:00]} 16. e5 {[%emt 0:08:05]} b4 {[%emt 0:06:37]} 17. Na4 {[%emt 0:03:57]} (17. Ne4 {looks sharper.} dxe5 18. dxe5 Nxe5 19. Nxe5 Bxe5 20. Nc5) 17... dxe5 {[%emt 0:02:52]} 18. dxe5 {[%emt 0:00:07]} Nxe5 {[%emt 0:00:43]} 19. Nxe5 {[%emt 0:00:32]} Bxa4 {[%emt 0:01:02]} 20. Qxa4 {[%emt 0:01:35]} Bxe5 {[%emt 0:00:13] [#]} 21. Qxb4 $1 {[%emt 0:04:00]} Bg7 {[%emt 0:00:46]} (21... Rh8 22. Qd2) 22. Rad1 {[%emt 0:01:16][%cal Od3g6]} Qb8 {[%emt 0:00:12]} 23. Qxb8 {[%emt 0:06:32] &Bianco is much more active. The black rooks are badly placed.} (23. Qh4 {keeps more tension.} Nf6 24. Bd4 Qd8 25. Bc5) 23... Rxb8 {[%emt 0:00:07]} 24. b3 {[%emt 0:00:03]} Bc3 {[%emt 0:05:07]} ({Black should try} 24... Nf6 $1 $14) 25. Re2 $16 {[%emt 0:02:29]} ({Inferior is} 25. Bxa6 Bxe1 26. Rxe1 Ra8 $17) 25... a5 {[%emt 0:01:15]} 26. Rc2 {[%emt 0:05:19]} Bb4 {[%emt 0:00:33]} 27. Ba7 {[%emt 0:01:06] This bishop pair is nice.} (27. Bf4 $16 Bd6 28. Bxd6 Nxd6 29. Bxg6+ $1 Kxg6 30. Rxd6) 27... Ra8 $14 {[%emt 0:00:27]} 28. Bc5 {[%emt 0:00:26]} Bxc5 {[%emt 0:00:35]} 29. Rxc5 {[%emt 0:00:07]} Nf6 {[%emt 0:00:14] Inhibits Be4.} 30. a4 {[%emt 0:01:14]} Rfc8 {[%emt 0:00:30]} 31. Rdc1 {[%emt 0:00:10]} Rxc5 {[%emt 0:00:18]} 32. Rxc5 $11 {[%emt 0:00:01][%mdl 4096] Endgame KRB-KRN} Ra7 {[%emt 0:00:44]} 33. Kf1 {[%emt 0:00:55]} Kg7 {[%emt 0:00:48]} 34. Ke2 {[%emt 0:00:18]} Nd7 {[%emt 0:02:28]} 35. Rb5 {[%emt 0:00:28]} h5 {[%emt 0:00:30]} 36. Ke3 {[%emt 0:00:33]} Kf6 {[%emt 0:00:14]} 37. Ke4 {[%emt 0:01:10]} Ke7 {[%emt 0:00:22]} 38. g4 {[%emt 0:00:39]} hxg4 {[%emt 0:00:09]} 39. hxg4 {[%emt 0:00:02]} Kd6 {[%emt 0:00:13]} 40. g5 {[%emt 0:00:38]} Nc5+ {[%emt 0:04:46]} 41. Kd4 {[%emt 0:04:31]} e5+ {[%emt 0:01:43]} 42. Kc3 {[%emt 0:00:05]} Ne6 {[%emt 0:00:15]} 43. Bc4 {[%emt 0:00:08]} Nxg5 {[%emt 0:01:16]} 44. Rd5+ {[%emt 0:00:07]} Ke7 {[%emt 0:00:22]} 45. Rxe5+ {[%emt 0:00:36]} Kf6 {[%emt 0:00:09]} 46. Re3 {[%emt 0:01:49]} Rb7 {[%emt 0:02:03] Against b4} 47. f4 {[%emt 0:01:11]} Nh7 {[%emt 0:00:25]} 48. Re5 {[%emt 0:00:19]} Ra7 {[%emt 0:00:04]} 49. Rb5 {[%emt 0:02:16]} Ke7 $2 {[%emt 0:01:03]} (49... Nf8 $1 $14) 50. Kd4 $1 $18 {[%emt 0:00:38]} Kd6 {[%emt 0:01:35]} 51. Rb6+ $1 {[%emt 0:00:34]} Ke7 {[%emt 0:02:41]} 52. Kc5 $1 {[%emt 0:02:16]} Nf6 {[%emt 0:00:06] ...Nd7+ is the strong threat.} 53. Rc6 {[%emt 0:02:43]} Nh5 $2 {[%emt 0:02:07]} (53... Nd7+ 54. Kb5 f6 55. Re6+ Kd8) 54. Kb6 {[%emt 0:00:06]} Rd7 {[%emt 0:00:33]} 55. Kxa5 {[%emt 0:00:30]} Nxf4 {[%emt 0:00:07]} 56. Kb6 $1 {[%emt 0:00:05]} g5 {[%emt 0:03:23]} 57. Rc8 $2 {[%emt 0:02:48]} (57. Rc5 $16) 57... g4 $1 $11 {[%emt 0:00:00]} 58. Rg8 {[%emt 0:01:11] Hoping for a5.} Ng6 {[%emt 0:00:00]} 59. Bf1 {[%emt 0:00:44]} g3 {[%emt 0:00:00]} 60. a5 {[%emt 0:00:08] And now a6 would win.} Rd1 {[%emt 0:00:00]} 61. Bg2 {[%emt 0:00:22] aiming for a6.} Rd2 {[%emt 0:00:00]} 62. a6 $2 {[%emt 0:02:03][%mdl 8192]} Rxg2 $19 {[%emt 0:00:07] KRN-KR} 63. a7 {[%emt 0:00:03]} Ra2 {[%emt 0:00:06]} 64. a8=Q {[%emt 0:00:04]} Rxa8 {[%emt 0:00:05]} 65. Rxa8 {[%emt 0:00:04] KR-KN} g2 {[%emt 0:00:16]} 66. Ra1 {[%emt 0:00:03] [#]} Nh4 $1 {[%emt 0:02:04]} 67. Kc7 {[%emt 0:01:16]} f5 $2 {[%emt 0:00:37]} (67... Nf3 $19 {has better winning chances.} 68. b4 g1=Q 69. Rxg1 Nxg1) 68. b4 $17 {[%emt 0:00:43] [#] Black is clearly better.} f4 $1 {[%emt 0:00:13][%cal Bf5f4,Bf4f3,Bf3f2][%mdl 1056] Black has strong compensation.} (68... Nf3 $2 69. b5 Nd4 70. b6 Nb5+ 71. Kc6 Nd4+ 72. Kc7 Nb5+ 73. Kc6 Nd4+ 74. Kd5 $18) 69. b5 {[%emt 0:00:08]} f3 {[%emt 0:03:02] ( -> ...f2)} (69... Nf3 $2 70. b6 g1=Q 71. Rxg1 Nxg1 72. b7 $18) 70. b6 f2 {[%emt 0:00:30]} 71. b7 {[%emt 0:03:10] What a bad dream for White.  Weighted Error Value: White=0.10 (very precise) /Black=0.20 (precise)} 1/2-1/2